lending/lending_fUSD_20240112
["ID","MTS","AMOUNT","RATE_DAILY","PERIOD"]
[311348448,1705065145084,-500.0,0.00032654,2]
[311348449,1705065145094,-500.0,0.00032654,2]
[311348450,1705065145103,-500.0,0.00032654,2]
[311348451,1705065145112,-500.0,0.00032654,2]
[311348452,1705065145122,-500.0,0.00032654,2]
[311348453,1705065145131,-171.921235,0.00032701,2]
[311348454,1705065145141,-166.79,0.0003278,2]
[311348455,1705065145150,-50000.0,0.00032783,7]
[311348456,1705065145160,-1000.0,0.00032783,7]
[311348457,1705065145170,-1000.0,0.00032783,7]
[311348458,1705065145179,-1000.0,0.00032783,7]
[311348459,1705065145189,-1000.0,0.00032783,7]
[311348460,1705065145198,-500.0,0.00032812,10]
[311348461,1705065145208,-500.0,0.00032849,2]
[311348462,1705065145217,-161.87919202,0.00032876,7]
[311348463,1705065145226,-313.19590312,0.00032876,7]
[311348464,1705065145236,-166.82683811,0.00032876,7]
[311348465,1705065145245,-297.35196151,0.00032876,7]
[311348466,1705065145254,-206.25159335,0.00032876,7]
[311348467,1705065145264,-500.0,0.00032876,7]
[311348468,1705065145273,-437.227326,0.00032876,7]
[311348469,1705065145283,-150.0,0.00032876,2]
[311348470,1705065145292,-300.0,0.00032876,2]
[311348471,1705065145302,-450.0,0.00032876,2]
[311348472,1705065145311,-600.0,0.00032876,2]
[311348473,1705065145320,-750.0,0.00032876,2]
[311348474,1705065145329,-900.0,0.00032876,2]
[311348475,1705065145339,-1050.0,0.00032876,2]
[311348476,1705065145348,-1200.0,0.00032876,2]
[311348477,1705065145357,-1350.0,0.00032876,2]
[311348478,1705065145367,-1500.0,0.00032876,2]
[311348479,1705065145376,-816.65969402,0.00032876,2]
[311348480,1705065145385,-10000.0,0.00032876,3]
[311348481,1705065145395,-10000.0,0.00032876,3]
[311348482,1705065145404,-10112.43012373,0.00032876,3]
[311348483,1705065145414,-534.98767824,0.00032876,2]
[311348484,1705065145423,-2504.51334364,0.00032876,7]
[311348485,1705065145434,-500.0,0.00032876,2]
[311348486,1705065145444,-500.0,0.00032876,2]
[311348487,1705065145453,-500.0,0.00032876,2]
[311348488,1705065145462,-500.0,0.00032876,2]
[311348489,1705065145472,-500.0,0.00032876,2]
[311348490,1705065145481,-500.0,0.00032876,2]
[311348491,1705065145490,-500.0,0.00032876,2]
[311348492,1705065145500,-500.0,0.00032876,2]
[311348493,1705065145509,-175.76139207,0.00032876,2]
[311348494,1705065145519,-1500.0,0.00032876,2]
[311348495,1705065145528,-500.0,0.00032876,7]
[311348496,1705065145537,-301.59652768,0.00032876,7]
[311348497,1705065145547,-153.84,0.00032877,2]
[311348498,1705065145556,-500.0,0.00032877,2]
[311348499,1705065145566,-918.5,0.00032877,15]
[311348500,1705065145575,-1382.0,0.00032877,5]
[311348501,1705065145584,-152.0,0.00032898,3]
[311348502,1705065145594,-2244.82354797,0.000329,2]
[311348503,1705065145603,-1000.0,0.000329,2]
[311348504,1705065145613,-150.0,0.00032921,2]
[311348505,1705065145622,-1000.0,0.00032926,7]
[311348506,1705065145632,-1000.0,0.00032926,7]
[311348507,1705065145641,-1000.0,0.00032926,7]
[311348508,1705065145650,-1000.0,0.00032926,7]
[311348509,1705065145660,-1000.0,0.00032926,7]
[311348510,1705065145669,-1227.726509,0.00032969,2]
[311348511,1705065145680,-424.714556,0.00032969,2]
[311348512,1705065145690,-469.234858,0.00032969,2]
[311348513,1705065145700,-100000.0,0.00033,3]
[311348514,1705065145711,-232276.5098985,0.00033,2]
[311348515,1705065145720,-1000.0,0.00033,3]
[311348516,1705065145729,-1000.0,0.00033,3]
[311348517,1705065145739,-1000.0,0.00033,3]
[311348518,1705065145749,-1000.0,0.00033,3]
[311348519,1705065145759,-1052.0,0.00033,3]
[311348520,1705065145770,-1004.0,0.00033,3]
[311348521,1705065145779,-12668.05995193,0.00033,2]
[311348522,1705065145789,-1828.2647859,0.00033,2]
[311348523,1705065145798,-10890.27767769,0.00033,18]
[311348524,1705065145808,-750.0,0.00033,3]
[311348525,1705065145818,-300.0,0.00033,6]
[311348526,1705065145827,-429.80796364,0.00033,2]
[311348527,1705065145836,-429.80796364,0.00033,2]
[311348528,1705065145846,-429.80796364,0.00033,2]
[311348529,1705065145858,-429.80796364,0.00033,2]
[311348530,1705065145867,-429.80796364,0.00033,2]
[311348531,1705065145876,-429.80796364,0.00033,2]
[311348532,1705065145886,-429.80796364,0.00033,2]
[311348533,1705065145896,-429.80796364,0.00033,2]
[311348534,1705065145906,-429.80796364,0.00033,2]
[311348535,1705065145915,-429.80796364,0.00033,2]
[311348536,1705065145924,-429.80796364,0.00033,2]
[311348537,1705065145934,-429.80796364,0.00033,2]
[311348538,1705065145944,-429.80796364,0.00033,2]
[311348539,1705065145953,-429.80796364,0.00033,2]
[311348540,1705065145963,-429.80796364,0.00033,2]
[311348541,1705065145972,-429.80796364,0.00033,2]
[311348542,1705065145982,-429.80796364,0.00033,2]
[311348543,1705065145991,-429.80796364,0.00033,2]
[311348544,1705065146000,-429.80796364,0.00033,2]
[311348545,1705065146010,-429.80796364,0.00033,2]
[311348546,1705065146020,-429.80796364,0.00033,2]
[311348547,1705065146029,-429.80796364,0.00033,2]
[311348548,1705065146038,-429.80796364,0.00033,2]
[311348549,1705065146048,-429.80796364,0.00033,2]
[311348550,1705065146057,-429.80796364,0.00033,2]
[311348551,1705065146067,-429.80796364,0.00033,2]
[311348552,1705065146076,-429.80796364,0.00033,2]
[311348553,1705065146085,-429.80796364,0.00033,2]
[311348554,1705065146095,-429.80796364,0.00033,2]
[311348555,1705065146104,-429.80796364,0.00033,2]
[311348556,1705065146113,-429.80796364,0.00033,2]
[311348557,1705065146123,-429.80796364,0.00033,2]
[311348558,1705065146133,-429.80796364,0.00033,2]
[311348559,1705065146142,-429.80796364,0.00033,2]
[311348560,1705065146152,-429.80796364,0.00033,2]
[311348561,1705065146161,-429.80796364,0.00033,2]
[311348562,1705065146369,-429.80796364,0.00033,2]
[311348563,1705065146379,-429.80796364,0.00033,2]
[311348564,1705065146388,-429.80796364,0.00033,2]
[311348565,1705065146398,-429.80796364,0.00033,2]
[311348566,1705065146406,-429.80796364,0.00033,2]
[311348567,1705065146415,-429.80796364,0.00033,2]
[311348568,1705065146425,-429.80796364,0.00033,2]
[311348569,1705065146434,-429.80796364,0.00033,2]
[311348570,1705065146443,-429.80796364,0.00033,2]
[311348571,1705065146453,-429.80796364,0.00033,2]
[311348572,1705065146462,-429.80796364,0.00033,2]
[311348573,1705065146471,-429.80796364,0.00033,2]
[311348574,1705065146481,-429.80796364,0.00033,2]
[311348575,1705065146491,-429.80796364,0.00033,2]
[311348576,1705065146500,-326.46596763,0.00033,2]
[311348577,1705065146510,-326.46596763,0.00033,2]
[311348578,1705065146520,-150.0,0.00033,6]
[311348579,1705065146529,-841.2443998,0.00033,2]
[311348580,1705065146539,-271.42536598,0.00033,2]
[311348581,1705065146548,-271.42536598,0.00033,2]
[311348582,1705065146558,-271.42536598,0.00033,2]
[311348583,1705065146567,-215.0,0.0003307,2]
[311348584,1705065146577,-500.0,0.00033086,7]
[311348585,1705065146586,-500.0,0.00033086,7]
[311348586,1705065146597,-893.01,0.00033149,2]
[311348587,1705065146607,-50000.0,0.00033169,10]
[311348588,1705065146617,-1000.0,0.00033169,7]
[311348589,1705065146626,-1000.0,0.00033169,7]
[311348590,1705065146636,-1000.0,0.00033169,7]
[311348591,1705065146645,-1000.0,0.00033169,7]
[311348592,1705065146656,-1000.0,0.00033169,7]
[311348593,1705065146665,-1000.0,0.00033169,7]
[311348594,1705065146675,-1000.0,0.00033169,7]
[311348595,1705065146684,-171.921235,0.00033238,2]
[311348596,1705065146694,-500.0,0.00033247,2]
[311348597,1705065146703,-184.0,0.00033292,2]
[311348598,1705065146713,-150.0,0.00033302,2]
[311348599,1705065146723,-319.57156587,0.00033319,2]
[311348600,1705065146732,-528.57068135,0.00033319,4]
[311348601,1705065146742,-331.36,0.00033369,2]
[311348602,1705065146751,-1227.726509,0.00033372,2]
[311348603,1705065146761,-424.714556,0.00033372,2]
[311348604,1705065146770,-469.234858,0.00033372,2]
[311348605,1705065146779,-2049.0,0.00033392,5]
[311348606,1705065146788,-460.54,0.00033408,2]
[311348607,1705065146797,-1500.0,0.00033424,4]
[311348608,1705065146807,-392.22620864,0.000335,2]
[311348609,1705065146816,-153.24922907,0.00033509,2]
[311348610,1705065146825,-296.654543,0.000336,7]
[311348611,1705065146834,-500.0,0.00033645,2]
[311348612,1705065146844,-2411.94826764,0.00033677,2]
[311348613,1705065146854,-150.0,0.00033684,2]
[311348614,1705065146864,-215.0,0.0003373,2]
[311348615,1705065146873,-171.921235,0.00033774,2]
[311348616,1705065146883,-1227.726509,0.00033774,2]
[311348617,1705065146893,-424.714556,0.00033774,2]
[311348618,1705065146902,-469.234858,0.00033774,2]
[311348619,1705065146912,-153.84,0.0003379,2]
[311348620,1705065146921,-50000.0,0.00033796,10]
[311348621,1705065146930,-50000.0,0.00033796,10]
[311348622,1705065146939,-14816.13395535,0.00033796,10]
[311348623,1705065146948,-50000.0,0.00033796,10]
[311348624,1705065146958,-8670.14915553,0.00033796,9]
[311348625,1705065146967,-71760.0404279,0.00033796,10]
[311348626,1705065146976,-25041.41679852,0.00033796,10]
[311348627,1705065146985,-10868.57087648,0.00033796,9]
[311348628,1705065146994,-26568.47932132,0.00033796,10]
[311348629,1705065147004,-10000.0,0.00033808,2]
[311348630,1705065147014,-295550.02774689,0.000339,3]
[311348631,1705065147023,-537.88629014,0.00033908,10]
[311348632,1705065147032,-1500.0,0.00033972,6]
[311348633,1705065147042,-21674.69612216,0.00033995,2]
[311348634,1705065147051,-19999.999999,0.00033995,2]
[311348635,1705065147061,-100000.0,0.00034,4]
[311348636,1705065147071,-1000.0,0.00034,4]
[311348637,1705065147080,-1000.0,0.00034,4]
[311348638,1705065147089,-1000.0,0.00034,4]
[311348639,1705065147098,-1000.0,0.00034,4]
[311348640,1705065147107,-997.0,0.00034,4]
[311348641,1705065147117,-500.0,0.00034,2]
[311348642,1705065147126,-13375.65283437,0.00034,2]
[311348643,1705065147137,-12255.4165382,0.00034,2]
[311348644,1705065147146,-809.66661115,0.00034,4]
[311348645,1705065147155,-79944.35966882,0.00034,2]
[311348646,1705065147166,-300.0,0.00034,7]
[311348647,1705065147177,-150.0,0.00034,7]
[311348648,1705065147187,-841.2443998,0.00034,2]
[311348649,1705065147196,-500.0,0.00034042,2]
[311348650,1705065147206,-150.0,0.00034065,2]
[311348651,1705065147215,-152.0,0.00034101,4]
[311348652,1705065147225,-200.0,0.00034109,2]
[311348653,1705065147234,-200.0,0.00034109,2]
[311348654,1705065147244,-200.0,0.00034109,2]
[311348655,1705065147253,-200.0,0.00034109,2]
[311348656,1705065147263,-200.0,0.00034109,2]
[311348657,1705065147275,-200.0,0.00034109,2]
[311348658,1705065147285,-200.0,0.00034109,2]
[311348659,1705065147294,-200.0,0.00034109,2]
[311348660,1705065147303,-199.89147606,0.00034109,2]
[311348661,1705065147313,-150.0,0.00034132,2]
[311348662,1705065147322,-500.0,0.00034182,7]
[311348663,1705065147331,-518.97164259,0.00034182,7]
[311348664,1705065147340,-1000.0,0.00034286,2]
[311348665,1705065147349,-215.0,0.0003438,2]
[311348666,1705065147358,-460.54,0.00034386,2]
[311348667,1705065147367,-500.0,0.0003444,2]
[311348668,1705065147376,-150.0,0.00034447,2]
[311348669,1705065147385,-1000.0,0.00034487,7]
[311348670,1705065147395,-1000.0,0.00034487,7]
[311348671,1705065147404,-1000.0,0.00034487,7]
[311348672,1705065147414,-1000.0,0.00034487,7]
[311348673,1705065147423,-1000.0,0.00034487,7]
[311348674,1705065147433,-1000.0,0.00034487,7]
[311348675,1705065147442,-1000.0,0.00034487,7]
[311348676,1705065147451,-1000.0,0.00034487,7]
[311348677,1705065147461,-2986.38038634,0.00034487,2]
[311348678,1705065147470,-7473.2190906,0.00034487,6]
[311348679,1705065147479,-1000.0,0.00034487,7]
[311348680,1705065147489,-422.07489626,0.00034487,4]
[311348681,1705065147498,-3871.46862153,0.00034487,4]
[311348682,1705065147507,-2467.94481208,0.00034487,6]
[311348683,1705065147518,-4382.82298975,0.00034487,6]
[311348684,1705065147527,-1000.0,0.00034487,7]
[311348685,1705065147537,-1000.0,0.00034487,7]
[311348686,1705065147547,-1734.83840987,0.00034487,6]
[311348687,1705065147557,-2274.49563206,0.00034487,6]
[311348688,1705065147567,-1000.0,0.00034487,7]
[311348689,1705065147577,-107777.86895471,0.000345,2]
[311348690,1705065147900,-12935.37192155,0.000345,2]
[311348691,1705065148328,-500.0,0.00022587,2]
[311348692,1705065148339,-249.03749103,0.00022589,2]
[311348693,1705065148349,-349.74947919,0.00022589,2]
[311348694,1705065148358,-202.52398103,0.00022589,2]
[311348695,1705065148368,-641.62118611,0.00022589,2]
[311348696,1705065148377,-213.23222394,0.00022589,2]
[311348697,1705065148387,-5382.0447648,0.00022589,2]
[311348698,1705065148662,-0.12979926,0.00022589,2]
[311348699,1705065148673,-686.97774285,0.00022589,2]
[311348700,1705065148685,-4472.75019133,0.00022589,2]
[311348701,1705065148698,-340.00673265,0.00022589,2]
[311348702,1705065148707,-765.03951523,0.00022589,2]
[311348703,1705065148717,-2265.84351247,0.00022589,2]
[311348704,1705065148727,-500.0,0.0002259,2]
[311348705,1705065148736,-500.0,0.0002259,2]
[311348706,1705065148746,-500.0,0.00022861,2]
[311348707,1705065148756,-500.0,0.00022864,2]
[311348708,1705065148766,-500.0,0.00022864,2]
[311348709,1705065148775,-115.26564831,0.00023135,2]
[311348710,1705065148822,2456.10189724,0.0002249,2]
[311348711,1705065149260,1597.72739359,0.00017992,2]
[311348712,1705065149697,-500.0,0.00022587,2]
[311348713,1705065149708,-500.0,0.00022587,2]
[311348714,1705065149719,-500.0,0.00022587,2]
[311348715,1705065149729,-500.0,0.00022587,2]
[311348716,1705065149739,-500.0,0.00022587,2]
[311348717,1705065149750,-263.31041702,0.00022588,2]
[311348718,1705065149760,-155.0,0.00022588,2]
[311348719,1705065149772,-156.0189859,0.00022588,2]
[311348720,1705065149783,-350.02537736,0.00022588,2]
[311348721,1705065149793,-3250.65777849,0.00022588,2]
[311348722,1705065149806,-1540.50888739,0.00022588,2]
[311348723,1705065149819,-744.24111261,0.00022588,2]
[311348724,1705065149832,-894.18392494,0.00022588,2]
[311348725,1705065149842,-288.51546872,0.00022588,2]
[311348726,1705065149852,-155.0,0.00022588,2]
[311348727,1705065149862,-259.16860689,0.00022589,2]
[311348728,1705065149872,-33.74530206,0.00022589,2]
[311348729,1705065150721,-4620.10854886,0.00022588,2]
[311348730,1705065150733,-757.83994712,0.00022589,2]
[311348731,1705065150743,-760.1,0.0002259,2]
[311348732,1705065150753,-500.0,0.0002259,2]
[311348733,1705065150763,-500.0,0.0002259,2]
[311348734,1705065150774,-500.0,0.0002259,2]
[311348735,1705065150784,-500.0,0.00022861,2]
[311348736,1705065150794,-500.0,0.00022861,2]
[311348737,1705065150804,-500.0,0.00022861,2]
[311348738,1705065150813,-500.0,0.00022861,2]
[311348739,1705065150823,-500.0,0.00022861,2]
[311348740,1705065150833,-760.1,0.00022864,2]
[311348741,1705065150844,-500.0,0.00022864,2]
[311348742,1705065150854,-264.22242905,0.00022864,2]
[311348743,1705065150865,-500.0,0.00022864,2]
[311348744,1705065150875,-384.73435169,0.00023135,2]
[311348745,1705065150887,-500.0,0.00023135,2]
[311348746,1705065150897,-500.0,0.00023135,2]
[311348747,1705065150907,-500.0,0.00023135,2]
[311348748,1705065150917,-500.0,0.00023135,2]
[311348749,1705065150927,-500.0,0.00023135,2]
[311348750,1705065150938,-500.0,0.00023138,2]
[311348751,1705065150947,-500.0,0.00023138,2]
[311348752,1705065150957,-500.0,0.00023138,2]
[311348753,1705065150967,-760.1,0.00023138,2]
[311348754,1705065150977,-500.0,0.00023138,2]
[311348755,1705065150987,-202.03,0.00023409,2]
[311348756,1705065150997,-500.0,0.00023409,2]
[311348757,1705065151007,-500.0,0.00023409,2]
[311348758,1705065151018,-500.0,0.00023412,2]
[311348759,1705065151029,-500.0,0.00023412,2]
[311348760,1705065151038,-500.0,0.00023412,2]
[311348761,1705065151048,-500.0,0.00023412,2]
[311348762,1705065151058,-760.1,0.00023412,2]
[311348763,1705065151068,-500.0,0.00023683,2]
[311348764,1705065151078,-500.0,0.00023686,2]
[311348765,1705065151088,-500.0,0.00023686,2]
[311348766,1705065151098,-500.0,0.00023686,2]
[311348767,1705065151107,-544.36,0.00023686,2]
[311348768,1705065151119,-760.1,0.00023686,2]
[311348769,1705065151129,-500.0,0.00023957,2]
[311348770,1705065151139,-500.0,0.0002396,2]
[311348771,1705065151148,-500.0,0.0002396,2]
[311348772,1705065151157,-500.0,0.0002396,2]
[311348773,1705065151167,-760.1,0.0002396,2]
[311348774,1705065151176,-500.0,0.00024234,2]
[311348775,1705065151185,-506.94,0.00024234,2]
[311348776,1705065151195,-500.0,0.00024234,2]
[311348777,1705065151204,-500.0,0.00024508,2]
[311348778,1705065151213,-500.0,0.00024508,2]
[311348779,1705065151223,-500.0,0.00024782,2]
[311348780,1705065151232,-500.0,0.00024782,2]
[311348781,1705065151243,-500.0,0.00025056,2]
[311348782,1705065151254,-500.0,0.00025056,2]
[311348783,1705065151263,-202.96,0.0002533,2]
[311348784,1705065151275,-500.0,0.0002533,2]
[311348785,1705065151285,-500.0,0.00025604,2]
[311348786,1705065151296,-500.0,0.00025875,2]
[311348787,1705065151305,-500.0,0.00025878,2]
[311348788,1705065151316,-500.0,0.00026149,2]
[311348789,1705065151326,-500.0,0.00026152,2]
[311348790,1705065151336,-500.0,0.00026423,2]
[311348791,1705065151346,-392.0386344,0.00026426,2]
[311348792,1705065151356,-500.0,0.00026697,2]
[311348793,1705065151367,-500.0,0.00026971,2]
[311348794,1705065151377,-500.0,0.00027245,2]
[311348795,1705065151388,-500.0,0.00027248,2]
[311348796,1705065151398,-516.32603759,0.00027519,2]
[311348797,1705065151409,-500.0,0.00027522,2]
[311348798,1705065151420,-500.0,0.00027796,2]
[311348799,1705065151430,-500.0,0.0002807,2]
[311348800,1705065151442,-583.56403885,0.00028344,2]
[311348801,1705065151453,-710.39690349,0.00028889,2]
[311348802,1705065151462,-62360.45302214,0.000345,2]
[311348803,1705065151472,-153.24922907,0.0003451,2]
[311348804,1705065151482,-1718.739093,0.0003452,2]
[311348805,1705065151492,-1500.0,0.0003452,8]
[311348806,1705065151502,-2469.22,0.00034521,2]
[311348807,1705065151513,-500.0,0.00034596,2]
[311348808,1705065151523,-27082.8227923,0.000346,2]
[311348809,1705065151560,189.057,0.00022488,2]
[311348810,1705065151630,243.49834279,0.0002249,2]
[311348811,1705065151769,244.2798206,0.0002249,2]
[311348812,1705065151823,155.0,0.00020782,2]
[311348813,1705065151930,393.6836,0.00022487,2]
[311348814,1705065152150,6614.05620832,0.0002249,2]
[311348815,1705065152183,399.14468343,0.00022363,2]
[311348816,1705065152474,14785.1908225,0.0002249,2]
[311348817,1705065152512,449.8754015,0.00020104,2]
[311348818,1705065152569,210.39456828,0.00020327,2]
[311348819,1705065153754,640.13985652,0.00021719,2]
[311348820,1705065154006,730.09857102,0.00021,2]
[311348821,1705065154332,1427.40182184,0.00020103,2]
[311348822,1705065154869,771.52,0.00021797,2]
[311348823,1705065159311,973.45610122,0.00018292,2]
[311348824,1705065159469,250.0,0.0002249,2]
[311348825,1705065161033,155.0,0.00020102,2]
[311348826,1705065161066,155.0,0.00020102,2]
[311348827,1705065161769,303.15269539,0.00020102,2]
[311348828,1705065161805,160.22,0.00022014,2]
[311348829,1705065162087,150.0,0.00022489,2]
[311348830,1705065162328,2000.0,0.00021678,2]
[311348831,1705065162431,299.71010477,0.00020101,2]
[311348832,1705065167090,349.93247563,0.00021,2]
[311348833,1705065175943,247.33,0.00021796,2]
[311348834,1705065198832,282.90032781,0.00021,2]
[311348835,1705065207903,168.57,0.0001769,2]
[311348836,1705065214826,286.0098598,0.00021,2]
[311348837,1705065299127,23900.0,0.00022113,2]
[311348838,1705065342229,168.44,0.00022076,2]
[311348839,1705065352333,153.51,0.00022076,2]
[311348840,1705065353568,1090.25,0.0002,7]
[311348841,1705065523268,382.78,0.00022046,2]
[311348842,1705065533799,500.0,0.00022589,30]
[311348843,1705065534046,500.0,0.00022863,30]
[311348844,1705065534284,500.0,0.00023137,30]
[311348845,1705065534558,500.0,0.00023411,30]
[311348847,1705065551441,215.38,0.00020128,2]
[311348848,1705065551752,215.38,0.00022392,2]
[311348849,1705065716003,154.56,0.00022029,2]
[311348850,1705065716216,154.56,0.00022344,2]
[311348851,1705065760981,205.6737,0.00022487,2]
[311348852,1705065767495,1070.1555,0.00022487,2]
[311348853,1705065861276,159.19,0.00021946,2]
[311348854,1705065942727,19399.1227,0.00022487,2]
[311348855,1705065945141,693.77,0.00021946,2]
[311348856,1705065961108,250.8774,0.00022487,2]
[311348858,1705066043091,-280.73104018,0.00022577,2]
[311348859,1705066043111,-1600.56455232,0.00022584,2]
[311348860,1705066043133,-802.79305606,0.00022585,2]
[311348861,1705066120166,193.84,0.00020003,2]
[311348862,1705066120364,193.84,0.00022267,2]
[311348863,1705066134055,-500.0,0.00022586,5]
[311348864,1705066134101,-500.0,0.00022588,5]
[311348865,1705066134163,-500.0,0.0002286,5]
[311348866,1705066134209,-500.0,0.00022862,5]
[311348871,1705066209837,160.22,0.00022295,2]
[311348884,1705066231781,-524.12198441,0.00022561,2]
[311348885,1705066231792,-158.58624909,0.00022562,2]
[311348886,1705066231803,-566.59727256,0.00022585,2]
[311348887,1705066231812,-318.31330327,0.00022585,2]
[311348888,1705066231822,-249.37878106,0.00022585,2]
[311348889,1705066231832,-244.08411725,0.00022585,2]
[311348890,1705066231841,-682.75174596,0.00022585,2]
[311348891,1705066231850,-842.13097267,0.00022586,2]
[311348892,1705066231859,-500.0,0.00022586,2]
[311348893,1705066231869,-582.12,0.00022586,2]
[311348894,1705066231878,-564.54,0.00022586,2]
[311348895,1705066231888,-500.0,0.00022586,2]
[311348896,1705066231897,-500.0,0.00022586,2]
[311348897,1705066231906,-837.36,0.00022586,2]
[311348898,1705066231915,-1353.68,0.00022586,2]
[311348899,1705066231925,-500.0,0.00022586,2]
[311348900,1705066231934,-11345.26,0.00022586,2]
[311348901,1705066231943,-4471.42,0.00022586,2]
[311348902,1705066231952,-655.02,0.00022586,2]
[311348903,1705066231964,-6229.49,0.00022586,2]
[311348904,1705066231973,-624.24,0.00022586,2]
[311348905,1705066231982,-500.0,0.00022586,2]
[311348906,1705066231991,-1759.44,0.00022586,2]
[311348907,1705066232000,-826.52,0.00022586,2]
[311348908,1705066232010,-757.87,0.00022586,2]
[311348909,1705066232019,-608.94,0.00022586,2]
[311348910,1705066232028,-500.0,0.00022586,2]
[311348911,1705066232038,-500.0,0.00022586,2]
[311348912,1705066232047,-1058.82,0.00022586,2]
[311348913,1705066232056,-546.3,0.00022586,2]
[311348914,1705066232067,-3574.17,0.00022586,2]
[311348915,1705066232076,-500.0,0.00022586,2]
[311348916,1705066232085,-1359.16,0.00022586,2]
[311348917,1705066232094,-743.72,0.00022586,2]
[311348918,1705066232104,-500.0,0.00022586,2]
[311348919,1705066232113,-500.0,0.00022586,2]
[311348920,1705066232122,-735.24,0.00022586,2]
[311348921,1705066232132,-976.73,0.00022586,2]
[311348922,1705066232141,-3162.1,0.00022586,2]
[311348923,1705066232150,-1277.82,0.00022586,2]
[311348924,1705066232159,-1265.06,0.00022586,2]
[311348925,1705066232169,-500.0,0.00022586,2]
[311348926,1705066232238,-803.48,0.00022586,2]
[311348927,1705066232248,-890.4,0.00022586,2]
[311348928,1705066232258,-500.0,0.00022586,2]
[311348929,1705066232267,-624.87,0.00022586,2]
[311348930,1705066232276,-588.31,0.00022586,2]
[311348931,1705066232285,-500.0,0.00022586,2]
[311348932,1705066232295,-500.0,0.00022586,2]
[311348933,1705066232303,-1392.18,0.00022586,2]
[311348934,1705066232313,-8610.68,0.00022586,2]
[311348935,1705066232323,-530.12,0.00022586,2]
[311348936,1705066232332,-500.0,0.00022586,2]
[311348937,1705066232341,-500.0,0.00022586,2]
[311348938,1705066232350,-1518.18,0.00022586,2]
[311348939,1705066232359,-569.78,0.00022586,2]
[311348940,1705066232368,-500.0,0.00022586,2]
[311348941,1705066232377,-1956.37,0.00022586,2]
[311348942,1705066232386,-794.53,0.00022586,2]
[311348943,1705066232395,-500.0,0.00022586,2]
[311348944,1705066232404,-500.0,0.00022586,2]
[311348945,1705066232413,-1365.15,0.00022586,2]
[311348946,1705066232423,-1595.83,0.00022586,2]
[311348947,1705066232432,-8214.94,0.00022586,2]
[311348948,1705066232441,-769.54,0.00022586,2]
[311348949,1705066232450,-2382.6,0.00022586,2]
[311348950,1705066232462,-873.75,0.00022586,2]
[311348951,1705066232472,-500.0,0.00022586,2]
[311348952,1705066232489,-1425.89,0.00022586,2]
[311348953,1705066232503,-1934.6,0.00022586,2]
[311348954,1705066232512,-500.0,0.00022586,2]
[311348955,1705066232521,-566.43,0.00022586,2]
[311348956,1705066232531,-1340.12,0.00022586,2]
[311348957,1705066232540,-500.0,0.00022586,2]
[311348958,1705066232549,-500.0,0.00022586,2]
[311348959,1705066232559,-500.0,0.00022586,2]
[311348960,1705066232568,-500.0,0.00022586,2]
[311348961,1705066232578,-500.0,0.00022586,2]
[311348962,1705066232587,-500.0,0.00022586,2]
[311348963,1705066232597,-559.31,0.00022586,2]
[311348964,1705066232606,-500.0,0.00022586,2]
[311348965,1705066232616,-724.41,0.00022586,2]